bitfinex/quotes_BTCUSD_20240902
["timestamp","ask_amount","ask_price","bid_price","bid_amount"]
[1725297342051,4.0112147,58492.0,58491.0,0.0022976]
[1725297342280,4.12856357,58492.0,58491.0,0.0022976]
[1725297342519,4.14056357,58492.0,58491.0,0.0022976]
[1725297343755,3.88417831,58492.0,58491.0,0.0022976]
[1725297343994,4.0232147,58492.0,58491.0,0.0022976]
[1725297344226,3.5904047,58492.0,58491.0,0.0022976]
[1725297344467,5.1866307,58492.0,58491.0,0.0022976]
[1725297345667,4.553593,58492.0,58491.0,0.0022976]
[1725297345891,2.907571,58492.0,58491.0,0.0022976]
[1725297346138,3.190316,58492.0,58491.0,0.0022976]
[1725297346615,3.00222402,58492.0,58491.0,0.0022976]
[1725297346834,3.17318702,58492.0,58491.0,0.0022976]
[1725297347565,3.15865502,58492.0,58491.0,0.0022976]
[1725297349747,3.16065502,58492.0,58491.0,0.0022976]
[1725297349972,3.32490594,58492.0,58491.0,0.0022976]
[1725297350242,3.27620381,58492.0,58491.0,0.0022976]
[1725297351649,2.80672802,58492.0,58491.0,0.1465976]
[1725297351888,2.66606381,58492.0,58491.0,0.1465976]
[1725297352631,2.66606381,58492.0,58491.0,0.0654976]
[1725297352873,2.66687981,58492.0,58491.0,0.0654976]
[1725297353129,2.65487981,58492.0,58491.0,0.0644976]
[1725297353367,2.66487981,58492.0,58491.0,0.0644976]
[1725297353606,2.65287981,58492.0,58491.0,0.0644976]
[1725297355052,2.66187981,58492.0,58491.0,0.0644976]
[1725297355346,0.170995,58481.0,58480.0,0.04946152]
[1725297355576,1.11152579,58481.0,58480.0,0.04946152]
[1725297355809,0.85511,58472.0,58471.0,0.0635]
[1725297356290,1.197154,58472.0,58471.0,0.0635]
[1725297356528,1.31470279,58472.0,58471.0,0.0635]
[1725297357024,0.97265879,58472.0,58471.0,0.0635]
[1725297358225,1.05110055,58472.0,58471.0,0.0635]
[1725297359226,1.39314455,58472.0,58471.0,0.0635]
[1725297359493,1.05110055,58472.0,58471.0,0.0635]
[1725297359722,1.05610055,58472.0,58471.0,0.0635]
[1725297360213,1.39814455,58472.0,58471.0,0.0635]
[1725297360465,1.40314455,58472.0,58471.0,0.0635]
[1725297360689,1.39814455,58472.0,58471.0,0.0635]
[1725297361380,1.39314455,58472.0,58471.0,0.0635]
[1725297361629,1.40314455,58472.0,58471.0,0.0635]
[1725297362353,1.39814455,58472.0,58471.0,0.0635]
[1725297362602,1.40314455,58472.0,58471.0,0.0635]
[1725297363056,1.39814455,58472.0,58471.0,0.0635]
[1725297363311,1.74518855,58472.0,58471.0,0.0635]
[1725297364037,1.75018855,58472.0,58471.0,0.0635]
[1725297364280,1.74018855,58472.0,58471.0,0.0635]
[1725297364787,1.74518855,58472.0,58471.0,0.0635]
[1725297365029,1.74018855,58472.0,58471.0,0.0643976]
[1725297365277,1.74518855,58472.0,58471.0,0.0643976]
[1725297368344,1.74518855,58472.0,58471.0,0.0012976]
[1725297368579,2.08223255,58472.0,58471.0,0.0012976]
[1725297369050,2.09023255,58472.0,58471.0,0.0012976]
[1725297369782,2.53139419,58472.0,58471.0,0.0012976]
[1725297370017,2.52939419,58472.0,58471.0,0.0012976]
[1725297370269,2.53139419,58472.0,58471.0,0.0012976]
[1725297370496,2.36284255,58472.0,58471.0,0.0012976]
[1725297370752,2.00663855,58472.0,58471.0,0.0012976]
[1725297370989,2.00163855,58472.0,58471.0,0.0012976]
[1725297371250,2.02063855,58472.0,58471.0,0.0012976]
[1725297371492,2.35068255,58472.0,58471.0,0.0012976]
[1725297371708,2.51423419,58472.0,58471.0,0.0012976]
[1725297371955,2.53923419,58472.0,58471.0,0.0012976]
[1725297372173,2.37068255,58472.0,58471.0,0.0012976]
[1725297373779,3.61558255,58472.0,58471.0,0.0012976]
[1725297378189,3.5372334,58472.0,58471.0,0.0012976]
[1725297379157,3.075548,58472.0,58471.0,0.0012976]
[1725297379403,3.2828544,58472.0,58471.0,0.0633976]
[1725297379689,3.2828544,58472.0,58471.0,0.1383976]
[1725297380171,3.6248984,58472.0,58471.0,0.0012976]
[1725297380393,3.2828544,58472.0,58471.0,0.0012976]
[1725297380615,1.539301,58468.0,58467.0,0.0136976]
[1725297380834,1.6569424,58468.0,58467.0,0.0136976]
[1725297381046,1.7569424,58468.0,58467.0,0.0136976]
[1725297382193,1.7649424,58468.0,58467.0,0.0136976]
[1725297383045,1.539355,58466.0,58465.0,0.008976]
[1725297383715,1.539355,58466.0,58465.0,0.074876]
[1725297384410,1.545355,58466.0,58465.0,0.074876]
[1725297386425,1.551355,58466.0,58465.0,0.074876]
[1725297388798,1.551355,58466.0,58465.0,0.008976]
[1725297390292,1.551355,58466.0,58465.0,0.074376]
[1725297393105,1.893434,58466.0,58465.0,0.008976]
[1725297393369,1.993434,58466.0,58465.0,0.008976]
[1725297394130,1.981434,58466.0,58465.0,0.008976]
[1725297394378,1.989434,58466.0,58465.0,0.008976]
[1725297394877,2.06464439,58466.0,58465.0,0.008976]
[1725297395542,2.06664439,58466.0,58465.0,0.008976]
[1725297395786,2.18428579,58466.0,58465.0,0.008976]
[1725297396011,2.19528579,58466.0,58465.0,0.008976]
[1725297396299,0.2606414,58466.0,58460.0,0.04975631]
[1725297396505,0.2606414,58466.0,58455.0,0.08363]
[1725297396506,0.515205,58456.0,58455.0,0.00043]
[1725297396762,1.881753,58456.0,58455.0,0.00043]
[1725297397222,1.981753,58456.0,58455.0,0.00043]
[1725297397903,1.986753,58456.0,58455.0,0.00043]
[1725297398756,1.644616,58456.0,58455.0,0.00043]
[1725297399430,1.649616,58456.0,58455.0,0.00043]
[1725297399651,1.7672574,58456.0,58455.0,0.14423]
[1725297402863,1.649616,58456.0,58455.0,0.14423]
[1725297403099,1.7672574,58456.0,58455.0,0.14423]
[1725297406596,1.7672574,58456.0,58455.0,0.00043]
[1725297408813,1.7672574,58456.0,58455.0,0.06083]
[1725297411012,0.865342,58456.0,58455.0,0.14303]
[1725297411239,0.01,58456.0,58455.0,0.14303]
[1725297411476,0.01,58456.0,58455.0,0.314101]
[1725297411685,0.01,58456.0,58455.0,0.16912336]
[1725297412396,0.181068,58456.0,58455.0,0.16912336]
[1725297412822,0.176068,58456.0,58455.0,0.16912336]
[1725297413052,0.855342,58456.0,58455.0,0.16912336]
[1725297413474,0.855342,58456.0,58455.0,0.14303]
[1725297413683,0.855342,58456.0,58455.0,0.1439287]
[1725297414331,0.855342,58456.0,58455.0,0.17002206]
[1725297414553,0.855342,58456.0,58455.0,0.1439287]
[1725297415396,0.855342,58456.0,58455.0,0.17002206]
[1725297415875,0.855342,58456.0,58455.0,0.1439287]
[1725297415876,0.513205,58456.0,58455.0,0.1439287]
[1725297416348,0.513205,58456.0,58455.0,0.17002206]
[1725297418057,0.171066,58457.0,58456.0,0.1438]
[1725297418501,0.171052,58462.0,58459.0,0.0788]
[1725297418713,0.342095,58464.0,58460.0,0.065]
[1725297418924,0.342095,58464.0,58457.0,0.00342092]
[1725297418925,0.513145,58463.0,58462.0,0.065]
[1725297419141,0.513145,58463.0,58462.0,0.144]
[1725297419391,0.855242,58463.0,58462.0,0.144]
[1725297419657,0.855242,58463.0,58462.0,0.17005841]
[1725297419873,0.513145,58463.0,58462.0,0.17005841]
[1725297420533,0.515145,58463.0,58462.0,0.17005841]
[1725297421791,0.002,58463.0,58462.0,0.17005841]
[1725297421999,0.173048,58463.0,58462.0,0.17005841]
[1725297422826,0.002,58463.0,58462.0,0.17005841]
[1725297424375,0.002,58463.0,58462.0,0.34110941]
[1725297425519,0.002,58463.0,58462.0,0.68321141]
[1725297427392,0.002817,58463.0,58462.0,0.68321141]
[1725297430451,0.002817,58463.0,58462.0,1.02531341]
[1725297430676,0.002817,58463.0,58462.0,0.68321141]
[1725297431147,0.002817,58463.0,58462.0,1.02531341]
[1725297431400,0.002817,58463.0,58462.0,0.36410941]
[1725297431879,0.002817,58463.0,58462.0,0.70621141]
[1725297432137,0.171037,58467.0,58464.0,0.1415]
[1725297432391,0.171034,58468.0,58465.0,0.312541]
[1725297432610,0.342055,58470.0,58467.0,0.0617]
[1725297432611,0.171031,58469.0,58467.0,0.0617]
[1725297432836,0.39200494,58472.0,58465.0,0.36810721]
[1725297432837,0.171027,58471.0,58465.0,0.36810721]
[1725297433089,0.171028,58470.0,58468.0,0.02601348]
[1725297433344,0.342034,58474.0,58470.0,0.0617]
[1725297433581,0.39188256,58477.0,58470.0,0.0617]
[1725297433814,0.39188256,58477.0,58472.0,0.1415]
[1725297433815,0.17102,58473.0,58472.0,0.1415]
[1725297434265,0.342001,58480.0,58473.0,0.1448]
[1725297434502,0.17101,58476.0,58473.0,0.0784]
[1725297434754,0.171013,58475.0,58474.0,0.02599003]
[1725297435457,0.171013,58475.0,58473.0,0.0784]
[1725297435909,0.171013,58475.0,58474.0,0.02599003]
[1725297436347,0.17101,58476.0,58474.0,0.02599003]
[1725297436809,0.17101,58476.0,58474.0,0.02399003]
[1725297437261,0.17101,58476.0,58474.0,0.02599003]
[1725297437474,0.17101,58476.0,58475.0,0.0611]
[1725297437918,0.17101,58476.0,58475.0,0.08675279]
[1725297438358,0.342006,58479.0,58476.0,0.1487]
[1725297438572,0.342006,58479.0,58477.0,0.0655]
[1725297438573,0.171004,58478.0,58477.0,0.0655]
[1725297438782,0.513012,58478.0,58477.0,0.0655]
[1725297439000,0.513012,58478.0,58477.0,0.09114498]
[1725297439213,0.171004,58478.0,58477.0,0.17434498]
[1725297439425,0.171001,58479.0,58478.0,0.1487]
[1725297439850,0.513004,58479.0,58478.0,0.17434107]
[1725297440282,0.171001,58479.0,58478.0,0.17334107]
[1725297440918,0.513004,58479.0,58478.0,0.17334107]
[1725297441125,0.519004,58479.0,58478.0,0.17334107]
[1725297441768,0.177001,58479.0,58478.0,0.17334107]
[1725297442194,0.519004,58479.0,58478.0,0.17334107]
[1725297443061,0.861007,58479.0,58478.0,0.17334107]
[1725297443483,0.861007,58479.0,58478.0,0.1477]
[1725297443948,0.861007,58479.0,58478.0,0.17332551]
[1725297444172,0.861007,58479.0,58478.0,0.02562551]
[1725297444387,0.17101,58476.0,58475.0,0.0649]
[1725297444804,0.51303,58476.0,58475.0,0.0649]
[1725297445460,0.17101,58476.0,58475.0,0.0649]
[1725297445888,0.17101,58476.0,58475.0,0.0659]
[1725297446314,0.51303,58476.0,58475.0,0.0659]
[1725297446566,0.17101,58476.0,58475.0,0.0659]
[1725297446792,0.51303,58476.0,58475.0,0.0659]
[1725297447026,0.51303,58476.0,58475.0,0.0669]
[1725297449378,0.17101,58476.0,58475.0,0.0669]
[1725297450220,0.51303,58476.0,58475.0,0.1483]
[1725297450405,0.17101,58476.0,58475.0,0.1483]
[1725297450655,0.51303,58476.0,58475.0,0.1483]
[1725297450861,0.17101,58476.0,58475.0,0.1483]
[1725297452078,0.171826,58476.0,58475.0,0.1483]
[1725297454232,0.171826,58476.0,58475.0,0.17393724]
[1725297457031,0.513846,58476.0,58475.0,0.1483]
[1725297457475,0.171826,58476.0,58475.0,0.17450155]
[1725297459479,0.513846,58476.0,58475.0,0.17450155]
[1725297459914,0.000816,58476.0,58475.0,0.17450155]
[1725297460132,0.000816,58476.0,58475.0,0.51994747]
[1725297460366,0.000816,58476.0,58475.0,1.05256655]
[1725297461027,0.000816,58476.0,58475.0,1.40659255]
[1725297461962,0.000816,58476.0,58475.0,1.87557973]
[1725297462189,0.000816,58491.0,58490.0,1.196783]
[1725297462436,0.000816,58491.0,58490.0,1.4777244]
[1725297462653,0.000816,58491.0,58490.0,1.5045089]
[1725297465050,0.001816,58491.0,58490.0,1.5105089]
[1725297465290,0.002816,58491.0,58490.0,1.5155089]
[1725297467464,0.002816,58491.0,58490.0,1.5255089]
[1725297467681,0.002816,58491.0,58490.0,1.5275089]
[1725297467897,0.002816,58491.0,58490.0,1.9694469]
[1725297470141,0.002816,58491.0,58490.0,2.04745569]
[1725297471621,0.002816,58491.0,58490.0,2.06745569]
[1725297476796,0.46906224,58512.0,58498.0,0.01]
[1725297477025,0.170917,58508.0,58499.0,0.1951196]
[1725297477264,0.17092,58507.0,58503.0,0.170929]
[1725297477500,0.12724724,58512.0,58503.0,0.170929]
[1725297477501,0.29815424,58512.0,58507.0,0.170918]
[1725297477741,0.170911,58510.0,58506.0,0.170922]
[1725297477978,0.170913,58509.0,58508.0,0.02668447]
[1725297478215,0.170908,58511.0,58506.0,0.170919]
[1725297478443,0.170911,58510.0,58507.0,0.02668837]
[1725297478915,0.179911,58510.0,58506.0,0.171919]
[1725297479139,0.170913,58509.0,58508.0,0.02668447]
[1725297479365,0.170913,58509.0,58507.0,0.02668837]
[1725297479602,0.170913,58509.0,58508.0,0.02668447]
[1725297479823,0.170913,58509.0,58507.0,0.001]
[1725297480055,0.170913,58509.0,58508.0,0.02704114]
[1725297480500,0.170913,58509.0,58507.0,0.002]
[1725297480741,0.170913,58509.0,58508.0,0.02704114]
[1725297481288,0.170916,58508.0,58507.0,0.001]
[1725297481534,0.170916,58508.0,58507.0,0.002]
[1725297481798,0.170916,58508.0,58504.0,0.193927]
[1725297482034,0.0617,58508.0,58507.0,0.001]
[1725297482309,0.992682,58508.0,58507.0,0.001]
[1725297482525,0.992682,58508.0,58495.0,0.341906]
[1725297482526,0.170938,58501.0,58497.0,0.170948]
[1725297482784,0.17094,58500.0,58496.0,0.170951]
[1725297483031,0.170944,58499.0,58494.0,0.0765]
[1725297483282,0.170943,58499.0,58495.0,0.170954]
[1725297483518,0.170943,58499.0,58496.0,0.023]
[1725297483748,0.170946,58498.0,58496.0,0.023]
[1725297483983,0.170946,58498.0,58495.0,0.023]
[1725297484207,0.170943,58499.0,58495.0,0.193954]
[1725297484438,0.170938,58501.0,58497.0,0.170948]
[1725297484673,0.17094,58500.0,58498.0,0.02706204]
[1725297485198,0.170943,58499.0,58498.0,0.02706204]
[1725297485435,0.17094,58500.0,58497.0,0.001]
[1725297485663,0.170943,58499.0,58498.0,0.02712166]
[1725297486181,0.170943,58499.0,58498.0,0.02912166]
[1725297486425,0.170943,58499.0,58498.0,0.002]
[1725297487112,0.170943,58499.0,58495.0,0.023]
[1725297487377,0.341884,58500.0,58495.0,0.023]
[1725297487615,0.170948,58497.0,58496.0,0.02712947]
[1725297487842,0.512845,58497.0,58496.0,0.02712947]
[1725297488117,0.064,58507.0,58499.0,0.0653]
[1725297488351,0.170935,58502.0,58499.0,0.0653]
[1725297488596,0.170935,58502.0,58500.0,0.02711385]
[1725297488853,0.341851,58505.0,58500.0,0.02711385]
[1725297489102,0.341851,58505.0,58500.0,0.03053229]
[1725297489369,0.170925,58506.0,58502.0,0.170931]
[1725297489598,0.006,58507.0,58506.0,0.170921]
[1725297489810,0.006,58507.0,58506.0,0.578966]
[1725297490069,0.000816,58510.0,58506.0,0.45813686]
[1725297490301,0.000816,58510.0,58509.0,0.170913]
[1725297490576,0.000816,58510.0,58507.0,0.023]
[1725297490577,0.000816,58510.0,58508.0,0.170915]
[1725297490812,0.000816,58510.0,58509.0,0.19799315]
[1725297491288,0.000816,58510.0,58509.0,0.19699315]
[1725297492007,0.004816,58510.0,58509.0,0.19699315]
[1725297492256,0.000816,58510.0,58509.0,0.19699315]
[1725297492771,0.004816,58510.0,58509.0,0.19699315]
[1725297493457,0.007816,58510.0,58509.0,0.19699315]
[1725297494854,0.007816,58510.0,58509.0,0.53882015]
[1725297496290,0.007816,58510.0,58509.0,0.61642015]
[1725297497305,0.000816,58510.0,58509.0,0.61642015]
[1725297498003,0.341795,58515.0,58509.0,0.44550715]
[1725297498258,0.1709,58514.0,58510.0,0.17091]
[1725297498495,0.1709,58514.0,58511.0,0.19781039]
[1725297498724,0.1709,58514.0,58511.0,0.02690339]
[1725297498957,0.170895,58516.0,58512.0,0.170904]
[1725297499413,0.170896,58515.0,58513.0,0.02689559]
[1725297499643,0.170899,58514.0,58513.0,0.02689559]
[1725297499863,0.170899,58514.0,58511.0,0.170907]
[1725297500094,0.170896,58515.0,58511.0,0.170907]
[1725297500355,0.170896,58515.0,58512.0,0.02741906]
[1725297500585,0.001,58514.0,58512.0,0.02741906]
[1725297500819,0.171899,58514.0,58512.0,0.02741906]
[1725297501265,0.001,58514.0,58513.0,0.02741515]
[1725297501577,0.00817,58519.0,58513.0,0.02741515]
[1725297501830,0.00817,58519.0,58515.0,0.341789]
[1725297502071,0.00817,58519.0,58517.0,0.170888]
[1725297502316,0.00817,58519.0,58518.0,0.169887]
[1725297502539,0.00817,58519.0,58518.0,0.19627486]
[1725297502784,0.00817,58519.0,58518.0,0.94312486]
[1725297503943,0.00917,58519.0,58518.0,0.94312486]
[1725297504221,0.00817,58519.0,58518.0,0.94312486]
[1725297504474,0.00917,58519.0,58518.0,0.60134986]
[1725297507446,0.00917,58519.0,58518.0,0.94312486]
[1725297509628,0.00917,58519.0,58518.0,1.38909986]
[1725297509839,0.00917,58519.0,58518.0,1.38709986]
[1725297510657,0.00817,58519.0,58518.0,1.38709986]
[1725297511069,0.00817,58519.0,58518.0,1.40109986]
[1725297511271,0.00817,58519.0,58518.0,1.38709986]
[1725297511447,0.00817,58519.0,58518.0,1.39609986]
[1725297511675,0.00817,58519.0,58518.0,1.41009986]
[1725297511882,0.00817,58519.0,58518.0,1.39609986]
[1725297512212,0.00817,58519.0,58518.0,1.39709986]
[1725297512448,0.00817,58519.0,58518.0,1.41109986]
[1725297513285,0.00817,58519.0,58518.0,1.42509986]
[1725297513931,0.00817,58519.0,58518.0,1.42709986]
[1725297514899,0.00817,58519.0,58518.0,1.42509986]
[1725297516697,0.00817,58519.0,58518.0,1.41509986]
[1725297518050,0.00817,58519.0,58518.0,1.07332486]
[1725297518255,0.00817,58519.0,58518.0,0.56604986]
[1725297518463,0.00817,58519.0,58518.0,0.22427486]
[1725297518671,0.00817,58519.0,58518.0,0.56604986]
[1725297519548,0.00817,58519.0,58518.0,0.58904986]
[1725297519766,0.00817,58519.0,58518.0,0.07838786]
[1725297519975,0.245454,58519.0,58518.0,0.05538786]
[1725297520186,0.245454,58519.0,58518.0,0.04498047]
[1725297520633,0.07457,58519.0,58518.0,0.04498047]
[1725297521507,0.587223,58519.0,58518.0,0.04498047]
[1725297521986,0.928992,58519.0,58518.0,0.04498047]
[1725297522220,1.345861,58519.0,58518.0,0.04498047]
[1725297522441,1.345861,58519.0,58518.0,0.028]
[1725297523334,1.345861,58519.0,58518.0,0.014]
[1725297523763,1.345861,58519.0,58518.0,0.028]
[1725297523982,1.345861,58519.0,58518.0,0.014]
[1725297524197,0.170902,58513.0,58512.0,0.01284541]
[1725297524641,0.512706,58513.0,58512.0,0.02984282]
[1725297524854,1.19176019,58513.0,58512.0,0.01284541]
[1725297525294,1.53356419,58513.0,58512.0,0.01284541]
[1725297525506,0.99611,58513.0,58512.0,0.02184541]
[1725297525720,0.574306,58513.0,58512.0,0.02184541]
[1725297526194,0.0616,58513.0,58512.0,0.0388467]
[1725297526421,0.00817,58519.0,58518.0,0.341775]
[1725297526631,0.00817,58519.0,58518.0,0.402875]
[1725297526881,0.00817,58519.0,58518.0,0.656262]
[1725297527105,0.00817,58519.0,58518.0,0.67324924]
[1725297527325,0.00817,58519.0,58518.0,0.33147424]
[1725297527784,0.00817,58519.0,58518.0,0.16458724]
[1725297528002,0.00817,58519.0,58518.0,0.19187424]
[1725297530499,0.00817,58519.0,58518.0,1.25919623]
[1725297530772,0.00817,58519.0,58518.0,1.38299924]
[1725297530991,0.00817,58519.0,58518.0,1.4019958]
[1725297531666,0.00817,58519.0,58518.0,1.3979958]
[1725297531905,0.00817,58519.0,58518.0,1.4069958]
[1725297532170,0.00817,58519.0,58518.0,1.4159958]
[1725297532595,0.00817,58519.0,58518.0,1.4241658]
[1725297532815,0.00817,58519.0,58518.0,1.4261658]
[1725297534002,0.00817,58519.0,58518.0,1.4361658]
[1725297534951,0.00817,58519.0,58518.0,1.92911702]
[1725297535161,0.341649,58540.0,58535.0,0.170837]
[1725297535419,0.170826,58540.0,58535.0,0.170837]
[1725297535662,0.341653,58539.0,58536.0,0.01694245]
[1725297535886,0.512496,58537.0,58536.0,0.01694245]
[1725297536114,0.170832,58537.0,58533.0,0.170842]
[1725297536558,0.170832,58537.0,58534.0,0.01694713]
[1725297537270,0.170832,58537.0,58534.0,0.18778713]
[1725297537920,0.170832,58537.0,58535.0,0.001]
[1725297538139,0.170829,58538.0,58534.0,0.19278713]
[1725297538405,0.170829,58538.0,58536.0,0.01694245]
[1725297538643,0.34165,58540.0,58534.0,0.17584]
[1725297538644,0.170832,58537.0,58535.0,0.01694479]
[1725297538853,0.170832,58537.0,58534.0,0.17684]
[1725297539069,0.170829,58538.0,58534.0,0.18284]
[1725297539331,0.170829,58538.0,58534.0,0.17684]
[1725297540026,0.170829,58538.0,58535.0,0.170836]
[1725297540242,0.170827,58539.0,58535.0,0.170836]
[1725297540953,0.170829,58538.0,58536.0,0.008]
[1725297541168,0.170829,58538.0,58535.0,0.170836]
[1725297541381,0.170826,58539.0,58535.0,0.185836]
[1725297541582,0.170829,58538.0,58535.0,0.185836]
[1725297541805,0.170826,58539.0,58536.0,0.170834]
[1725297542014,0.341636,58542.0,58538.0,0.0662]
[1725297542227,0.170821,58541.0,58538.0,0.0662]
[1725297542654,0.341633,58543.0,58538.0,0.0662]
[1725297542848,0.170825,58540.0,58538.0,0.0662]
[1725297543293,0.170826,58539.0,58538.0,0.0662]
[1725297543505,0.170826,58539.0,58536.0,0.170834]
[1725297543747,0.170826,58539.0,58536.0,0.007]
[1725297543960,0.170826,58539.0,58536.0,0.014]
[1725297544172,0.170831,58538.0,58536.0,0.007]
[1725297544388,0.170831,58538.0,58537.0,0.01693337]
[1725297544806,0.170831,58538.0,58535.0,0.233537]
[1725297545045,0.170831,58538.0,58537.0,0.01693337]
[1725297545256,0.341633,58543.0,58536.0,0.02393571]
[1725297545459,0.341633,58543.0,58537.0,0.01693337]
[1725297545460,0.170827,58539.0,58537.0,0.01693337]
[1725297546874,0.170827,58539.0,58535.0,0.233537]
[1725297547119,0.170827,58539.0,58537.0,0.008]
[1725297547295,0.170827,58539.0,58538.0,0.01692823]
[1725297547913,0.170827,58539.0,58537.0,0.007]
[1725297548113,0.170827,58539.0,58538.0,0.01692823]
[1725297548491,0.170827,58539.0,58536.0,0.170834]
[1725297548688,0.170823,58540.0,58538.0,0.007]
[1725297548888,0.170821,58541.0,58539.0,0.01692589]
[1725297549125,0.171637,58541.0,58539.0,0.01692589]
[1725297549317,0.170823,58540.0,58539.0,0.01692589]
[1725297549678,0.171636,58541.0,58539.0,0.01692589]
[1725297550743,0.170823,58540.0,58539.0,0.01692589]
[1725297550962,0.512469,58540.0,58539.0,0.006]
[1725297551175,0.170823,58540.0,58539.0,0.02292589]
[1725297551380,0.170823,58540.0,58539.0,0.006]
[1725297551592,0.170823,58540.0,58539.0,0.01692589]
[1725297551795,0.170823,58540.0,58539.0,0.02392589]
[1725297552003,0.170823,58540.0,58539.0,0.014]
[1725297552472,0.170823,58540.0,58539.0,0.03092589]
[1725297553192,0.02760465,58541.0,58539.0,0.20174989]
[1725297553421,0.02760465,58541.0,58539.0,0.03092589]
[1725297553865,0.19842465,58541.0,58539.0,0.03092589]
[1725297554067,0.170823,58540.0,58539.0,0.03092589]
[1725297554286,0.512469,58540.0,58539.0,0.01692589]
[1725297554521,0.512487,58538.0,58537.0,0.0008976]
[1725297554730,0.512487,58538.0,58537.0,0.01782817]
[1725297554935,0.512487,58538.0,58537.0,0.0008976]
[1725297555159,0.512487,58538.0,58537.0,0.01782817]
[1725297555371,0.512487,58538.0,58537.0,0.0008976]
[1725297555589,0.512487,58538.0,58537.0,0.01782817]
[1725297555786,0.512487,58538.0,58537.0,0.0008976]
[1725297555997,0.512487,58538.0,58537.0,0.02682817]
[1725297556207,0.512487,58538.0,58537.0,0.0188976]
[1725297556420,0.512487,58538.0,58537.0,0.03582817]
[1725297558923,0.341652,58539.0,58537.0,0.03582817]
[1725297559658,0.000816,58541.0,58538.0,0.143]
[1725297559889,0.000816,58541.0,58540.0,0.574569]
[1725297560120,0.000816,58541.0,58540.0,0.61449439]
[1725297560344,0.000816,58541.0,58540.0,0.97513246]
[1725297560594,0.000816,58541.0,58540.0,1.39737846]
[1725297562009,0.000816,58541.0,58540.0,1.40937846]
[1725297562232,0.000816,58541.0,58540.0,1.76937846]
[1725297562489,0.000816,58541.0,58540.0,2.16302207]
[1725297562712,0.000816,58541.0,58540.0,2.35976355]
[1725297563183,0.000816,58541.0,58540.0,2.28302207]
[1725297563688,0.000816,58541.0,58540.0,2.27702207]
[1725297563892,0.000816,58541.0,58540.0,2.28502207]
[1725297564125,0.000816,58541.0,58540.0,2.33610504]
[1725297564351,0.000816,58541.0,58540.0,2.32210504]
[1725297564556,0.000816,58541.0,58540.0,2.83221181]
[1725297564791,0.000816,58541.0,58540.0,2.88985792]
[1725297565315,0.000816,58541.0,58540.0,2.48555715]
[1725297566637,0.000816,58541.0,58540.0,2.47155715]
[1725297566849,0.000816,58541.0,58540.0,2.30309638]
[1725297567493,0.000816,58541.0,58540.0,2.31709638]
[1725297570952,0.000816,58541.0,58540.0,2.64909638]
[1725297571162,0.000816,58541.0,58540.0,2.82720315]
[1725297572296,0.000816,58541.0,58540.0,2.92046231]
[1725297573806,0.000816,58541.0,58540.0,2.82720315]
[1725297575351,0.000816,58541.0,58540.0,2.92380317]
[1725297576252,0.000816,58541.0,58540.0,2.92379847]
[1725297576940,0.000816,58541.0,58540.0,2.90481349]
[1725297577169,0.000816,58541.0,58540.0,2.92379842]
[1725297578216,0.000816,58541.0,58540.0,2.91415242]
[1725297578634,0.000816,58541.0,58540.0,2.58215242]
[1725297579822,0.000816,58541.0,58540.0,2.41369165]
[1725297581106,0.000816,58541.0,58540.0,1.95244563]
[1725297581319,0.000816,58541.0,58540.0,2.22462197]
[1725297581527,0.000816,58541.0,58540.0,2.19911285]
[1725297581953,0.000816,58541.0,58540.0,2.14809582]
[1725297582400,0.000816,58541.0,58540.0,2.13409582]
[1725297582606,0.000816,58541.0,58540.0,2.12009582]
[1725297582826,0.000816,58541.0,58540.0,2.15509582]
[1725297583306,0.000816,58541.0,58540.0,2.14109582]
[1725297583528,0.000816,58541.0,58540.0,2.15509582]
[1725297583766,0.000816,58541.0,58540.0,2.48709582]
[1725297583993,0.000816,58541.0,58540.0,2.50109582]
[1725297584235,0.000816,58541.0,58540.0,2.50199342]
[1725297585363,0.000816,58541.0,58540.0,2.48500849]
[1725297585572,0.000816,58541.0,58540.0,2.50399593]
[1725297585785,0.170777,58556.0,58552.0,0.170787]
[1725297586431,0.170777,58556.0,58553.0,0.02108998]
[1725297586649,0.170777,58556.0,58553.0,0.19187498]
[1725297588153,0.8898,58577.0,58553.0,0.02708998]
[1725297588154,0.170782,58554.0,58553.0,0.02708998]
[1725297588826,0.0165,58554.0,58553.0,0.02708998]
[1725297589037,0.0165,58554.0,58553.0,0.03308998]
[1725297589473,0.0165,58554.0,58553.0,0.02708998]
[1725297589686,0.0165,58554.0,58553.0,0.19787498]
[1725297589902,0.187274,58557.0,58553.0,0.20587498]
[1725297590117,0.0165,58557.0,58554.0,0.170781]
[1725297590333,0.187274,58557.0,58554.0,0.170781]
[1725297590601,0.187274,58557.0,58555.0,0.02108408]
[1725297590814,0.170776,58556.0,58555.0,0.02108408]
[1725297591024,0.170776,58556.0,58553.0,0.184784]
[1725297591236,0.170776,58556.0,58555.0,0.02108408]
[1725297591453,0.170776,58556.0,58554.0,0.02108701]
[1725297591674,0.170776,58556.0,58553.0,0.178784]
[1725297591675,0.187274,58557.0,58555.0,0.02108408]
[1725297592098,0.187274,58557.0,58553.0,0.186784]
[1725297592306,0.528821,58557.0,58556.0,0.02108085]
[1725297592534,0.170777,58556.0,58555.0,0.006]
[1725297592959,0.170777,58556.0,58553.0,0.005]
[1725297593140,0.170777,58556.0,58555.0,0.005]
[1725297593596,0.170777,58556.0,58551.0,0.170789]
[1725297593809,0.170777,58556.0,58555.0,0.012]
[1725297595114,0.170777,58556.0,58551.0,0.170789]
[1725297595327,0.170777,58556.0,58552.0,0.023]
[1725297595766,0.17078,58555.0,58552.0,0.023]
[1725297595992,0.17078,58555.0,58553.0,0.0008965]
[1725297597755,0.358862,58557.0,58553.0,0.0008965]
[1725297598153,0.170777,58556.0,58553.0,0.0078965]
[1725297598898,0.169777,58556.0,58549.0,0.341589]
[1725297599122,0.169777,58556.0,58553.0,0.007]
[1725297599393,0.169777,58556.0,58553.0,0.013]
[1725297599611,0.169777,58556.0,58553.0,0.006]